[Event "Early Titled Tuesday Blitz | February 8 2022"]
[White "Loy, Konstantin"]
[Black "Kopylov, Alexander A."]
[WhiteFideId "14122499"]
[BlackFideId "4164857"]
[WhiteElo "2084"]
[BlackElo "2436"]
[Result "1/2-1/2"]
[Round "01"]
[TimeControl "180+1"]
[Date "2022.02.08"]
[WhiteClock "0:00:03"]
[BlackClock "0:00:53"]

1. e4 {[%clk 0:02:58]}  c6 {[%clk 0:02:59]} 2. d4 {[%clk 0:02:54]}  d5 {[%clk 0:02:58]} 3. exd5 {[%clk 0:02:55]}  cxd5 {[%clk 0:02:58]} 4. c4 {[%clk 0:02:56]}  Nf6 {[%clk 0:02:58]} 5. Nc3 {[%clk 0:02:54]}  g6 {[%clk 0:02:58]} 6. cxd5 {[%clk 0:02:54]}  Bg7 {[%clk 0:02:58]} 7. Bc4 {[%clk 0:02:53]}  O-O {[%clk 0:02:58]} 8. Nge2 {[%clk 0:02:53]}  Bg4 {[%clk 0:02:50]} 9. h3 {[%clk 0:02:48]}  Bxe2 {[%clk 0:02:49]} 10. Qxe2 {[%clk 0:02:45]}  Nbd7 {[%clk 0:02:49]} 11. Qf3 {[%clk 0:02:33]}  Ne8 {[%clk 0:02:30]} 12. O-O {[%clk 0:02:00]}  Nd6 {[%clk 0:02:30]} 13. Bb3 {[%clk 0:01:58]}  Nf5 {[%clk 0:02:30]} 14. Be3 {[%clk 0:01:42]}  Nxd4 {[%clk 0:02:28]} 15. Bxd4 {[%clk 0:01:41]}  Bxd4 {[%clk 0:02:29]} 16. Rad1 {[%clk 0:01:39]}  Bg7 {[%clk 0:02:27]} 17. d6 {[%clk 0:01:33]}  Nc5 {[%clk 0:02:21]} 18. dxe7 {[%clk 0:01:26]}  Qxe7 {[%clk 0:02:21]} 19. Rfe1 {[%clk 0:01:25]}  Qf6 {[%clk 0:02:16]} 20. Qxf6 {[%clk 0:01:07]}  Bxf6 {[%clk 0:02:16]} 21. Ne4 {[%clk 0:00:58]}  Nxe4 {[%clk 0:02:12]} 22. Rxe4 {[%clk 0:00:59]}  Rad8 {[%clk 0:02:11]} 23. Rxd8 {[%clk 0:00:52]}  Rxd8 {[%clk 0:02:10]} 24. Re2 {[%clk 0:00:53]}  Rc8 {[%clk 0:02:05]} 25. g3 {[%clk 0:00:37]}  Kf8 {[%clk 0:01:54]} 26. Kg2 {[%clk 0:00:36]}  Rc1 {[%clk 0:01:54]} 27. Bd5 {[%clk 0:00:35]}  b6 {[%clk 0:01:49]} 28. b3 {[%clk 0:00:34]}  Bd4 {[%clk 0:01:47]} 29. a4 {[%clk 0:00:31]}  Bc5 {[%clk 0:01:46]} 30. Bc4 {[%clk 0:00:30]}  Rc3 {[%clk 0:01:43]} 31. h4 {[%clk 0:00:29]}  h5 {[%clk 0:01:43]} 32. Rd2 {[%clk 0:00:26]}  Ke7 {[%clk 0:01:31]} 33. Re2+ {[%clk 0:00:22]}  Kf6 {[%clk 0:01:31]} 34. Rd2 {[%clk 0:00:22]}  a6 {[%clk 0:01:20]} 35. Rd7 {[%clk 0:00:20]}  b5 {[%clk 0:01:14]} 36. axb5 {[%clk 0:00:20]}  axb5 {[%clk 0:01:14]} 37. Rxf7+ {[%clk 0:00:15]}  Ke5 {[%clk 0:01:15]} 38. Bxb5 {[%clk 0:00:15]}  Rxb3 {[%clk 0:01:15]} 39. Be8 {[%clk 0:00:12]}  Rb2 {[%clk 0:01:14]} 40. Rf3 {[%clk 0:00:12]}  Rb6 {[%clk 0:01:13]} 41. Bd7 {[%clk 0:00:08]}  Bd4 {[%clk 0:01:12]} 42. Be8 {[%clk 0:00:08]}  Re6 {[%clk 0:01:10]} 43. Bd7 {[%clk 0:00:08]}  Re7 {[%clk 0:01:11]} 44. Bb5 {[%clk 0:00:07]}  Rc7 {[%clk 0:01:11]} 45. Bd3 {[%clk 0:00:08]}  Rc6 {[%clk 0:01:11]} 46. Bb1 {[%clk 0:00:07]}  Ba7 {[%clk 0:01:11]} 47. Bd3 {[%clk 0:00:07]}  Kd4 {[%clk 0:01:07]} 48. Bb1 {[%clk 0:00:07]}  Re6 {[%clk 0:01:07]} 49. Ba2 {[%clk 0:00:07]}  Rb6 {[%clk 0:01:06]} 50. Bf7 {[%clk 0:00:07]}  Ke5 {[%clk 0:01:06]} 51. Be8 {[%clk 0:00:07]}  Rd6 {[%clk 0:01:05]} 52. Ba4 {[%clk 0:00:07]}  Rd4 {[%clk 0:01:02]} 53. Bb3 {[%clk 0:00:07]}  g5 {[%clk 0:01:01]} 54. hxg5 {[%clk 0:00:07]}  Rg4 {[%clk 0:01:01]} 55. Rf4 {[%clk 0:00:04]}  Rxg5 {[%clk 0:01:01]} 56. Rh4 {[%clk 0:00:04]}  Rf5 {[%clk 0:01:00]} 57. f4+ {[%clk 0:00:03]}  Kd4 {[%clk 0:01:00]} 58. Bd1 {[%clk 0:00:04]}  Ke3 {[%clk 0:01:00]} 59. Rxh5 {[%clk 0:00:04]}  Rf6 {[%clk 0:01:00]} 60. Re5+ {[%clk 0:00:04]}  Kd2 {[%clk 0:01:01]} 61. Rd5+ {[%clk 0:00:03]}  Ke3 {[%clk 0:01:00]} 62. Re5+ {[%clk 0:00:04]}  Kd4 {[%clk 0:01:00]} 63. Bh5 {[%clk 0:00:04]}  Bb8 {[%clk 0:01:00]} 64. Rg5 {[%clk 0:00:04]}  Rb6 {[%clk 0:01:00]} 65. Kf3 {[%clk 0:00:04]}  Rb3+ {[%clk 0:01:00]} 66. Kg4 {[%clk 0:00:04]}  Ke3 {[%clk 0:01:00]} 67. Rg6 {[%clk 0:00:04]}  Kf2 {[%clk 0:01:01]} 68. Kf5 {[%clk 0:00:04]}  Rb5+ {[%clk 0:01:00]} 69. Kg4 {[%clk 0:00:05]}  Rc5 {[%clk 0:00:57]} 70. Rg8 {[%clk 0:00:05]}  Bd6 {[%clk 0:00:56]} 71. Be8 {[%clk 0:00:05]}  Rc3 {[%clk 0:00:55]} 72. Kf5 {[%clk 0:00:05]}  Rc5+ {[%clk 0:00:55]} 73. Ke6 {[%clk 0:00:05]}  Bb8 {[%clk 0:00:55]} 74. f5 {[%clk 0:00:05]}  Re5+ {[%clk 0:00:55]} 75. Kd7 {[%clk 0:00:06]}  Rxf5 {[%clk 0:00:55]} 76. Rg7 {[%clk 0:00:05]}  Rd5+ {[%clk 0:00:52]} 77. Kc6 {[%clk 0:00:05]}  Rd6+ {[%clk 0:00:52]} 78. Kb7 {[%clk 0:00:06]}  Rd8 {[%clk 0:00:52]} 79. Rf7+ {[%clk 0:00:05]}  Kxg3 {[%clk 0:00:52]} 80. Bc6 {[%clk 0:00:06]}  Be5 {[%clk 0:00:52]} 81. Rd7 {[%clk 0:00:06]}  Rh8 {[%clk 0:00:51]} 82. Rd5 {[%clk 0:00:06]}  Kf4 {[%clk 0:00:52]} 83. Kb6 {[%clk 0:00:06]}  Rb8+ {[%clk 0:00:52]} 84. Bb7 {[%clk 0:00:06]}  Kf5 {[%clk 0:00:51]} 85. Rd7 {[%clk 0:00:07]}  Ke6 {[%clk 0:00:50]} 86. Rd3 {[%clk 0:00:07]}  Bd6 {[%clk 0:00:50]} 87. Re3+ {[%clk 0:00:06]}  Kd7 {[%clk 0:00:50]} 88. Rd3 {[%clk 0:00:07]}  Rh8 {[%clk 0:00:50]} 89. Kb5 {[%clk 0:00:06]}  Rh5+ {[%clk 0:00:50]} 90. Kc4 {[%clk 0:00:07]}  Rc5+ {[%clk 0:00:50]} 91. Kd4 {[%clk 0:00:06]}  Rb5 {[%clk 0:00:49]} 92. Bd5 {[%clk 0:00:06]}  Bc5+ {[%clk 0:00:49]} 93. Ke4 {[%clk 0:00:06]}  Rb4+ {[%clk 0:00:49]} 94. Kf3 {[%clk 0:00:05]}  Bd6 {[%clk 0:00:49]} 95. Be4 {[%clk 0:00:06]}  Ke6 {[%clk 0:00:49]} 96. Bd5+ {[%clk 0:00:05]}  Ke5 {[%clk 0:00:49]} 97. Bg8 {[%clk 0:00:06]}  Rf4+ {[%clk 0:00:49]} 98. Ke2 {[%clk 0:00:05]}  Bc5 {[%clk 0:00:49]} 99. Rd5+ {[%clk 0:00:05]}  Ke4 {[%clk 0:00:49]} 100. Rxc5 {[%clk 0:00:05]}  Rf8 {[%clk 0:00:49]} 101. Bb3 {[%clk 0:00:05]}  Kd4 {[%clk 0:00:49]} 102. Rd5+ {[%clk 0:00:04]}  Ke4 {[%clk 0:00:49]} 103. Rb5 {[%clk 0:00:04]}  Kd4 {[%clk 0:00:49]} 104. Rb6 {[%clk 0:00:02]}  Kc5 {[%clk 0:00:49]} 105. Rb7 {[%clk 0:00:03]}  Re8+ {[%clk 0:00:49]} 106. Kd3 {[%clk 0:00:02]}  Rd8+ {[%clk 0:00:49]} 107. Kc3 {[%clk 0:00:03]}  Rh8 {[%clk 0:00:49]} 108. Rf7 {[%clk 0:00:03]}  Rh3+ {[%clk 0:00:49]} 109. Kb2 {[%clk 0:00:03]}  Kb4 {[%clk 0:00:49]} 110. Rf4+ {[%clk 0:00:03]}  Kc5 {[%clk 0:00:50]} 111. Ka3 {[%clk 0:00:03]}  Rg3 {[%clk 0:00:50]} 112. Rf5+ {[%clk 0:00:04]}  Kd4 {[%clk 0:00:50]} 113. Kb4 {[%clk 0:00:04]}  Rg7 {[%clk 0:00:49]} 114. Rd5+ {[%clk 0:00:04]}  Ke4 {[%clk 0:00:50]} 115. Bc4 {[%clk 0:00:03]}  Rg1 {[%clk 0:00:49]} 116. Kc5 {[%clk 0:00:03]}  Rg7 {[%clk 0:00:49]} 117. Rd6 {[%clk 0:00:03]}  Rc7+ {[%clk 0:00:48]} 118. Kb4 {[%clk 0:00:04]}  Rc8 {[%clk 0:00:49]} 119. Kc3 {[%clk 0:00:04]}  Re8 {[%clk 0:00:49]} 120. Rd1 {[%clk 0:00:04]}  Re5 {[%clk 0:00:49]} 121. Re1+ {[%clk 0:00:04]}  Kf4 {[%clk 0:00:49]} 122. Rf1+ {[%clk 0:00:04]}  Ke3 {[%clk 0:00:50]} 123. Re1+ {[%clk 0:00:03]}  Kf4 {[%clk 0:00:50]} 124. Rh1 {[%clk 0:00:03]}  Ke3 {[%clk 0:00:50]} 125. Rh3+ {[%clk 0:00:03]}  Ke4 {[%clk 0:00:50]} 126. Bd3+ {[%clk 0:00:03]}  Kd5 {[%clk 0:00:50]} 127. Rh7 {[%clk 0:00:04]}  Kc5 {[%clk 0:00:50]} 128. Ra7 {[%clk 0:00:03]}  Kd5 {[%clk 0:00:50]} 129. Ra5+ {[%clk 0:00:04]}  Kd6 {[%clk 0:00:51]} 130. Ra6+ {[%clk 0:00:04]}  Kc5 {[%clk 0:00:51]} 131. Ra7 {[%clk 0:00:04]}  Kd5 {[%clk 0:00:51]} 132. Ra8 {[%clk 0:00:04]}  Kc5 {[%clk 0:00:51]} 133. Rc8+ {[%clk 0:00:04]}  Kd5 {[%clk 0:00:51]} 134. Rc7 {[%clk 0:00:04]}  Kd6 {[%clk 0:00:52]} 135. Rc4 {[%clk 0:00:03]}  Rc5 {[%clk 0:00:52]} 136. Rxc5 {[%clk 0:00:03]}  Kxc5 {[%clk 0:00:53]} 1/2-1/2


[Site "https://www.chess.com"]

[Event "Early Titled Tuesday Blitz | February 8 2022"]
[White "Maevsky, Nikolay"]
[Black "Miszler, Levente"]
[WhiteFideId "4198220"]
[BlackFideId "763276"]
[WhiteElo "2104"]
[BlackElo "1966"]
[Result "1-0"]
[Round "01"]
[TimeControl "180+1"]
[Date "2022.02.08"]
[WhiteClock "0:01:03"]
[BlackClock "0:01:51"]

1. d4 {[%clk 0:03:00]}  e6 {[%clk 0:02:59]} 2. Nf3 {[%clk 0:03:00]}  d5 {[%clk 0:02:58]} 3. e3 {[%clk 0:03:00]}  c5 {[%clk 0:02:58]} 4. b3 {[%clk 0:03:00]}  Nc6 {[%clk 0:02:58]} 5. Bb2 {[%clk 0:03:00]}  Nf6 {[%clk 0:02:57]} 6. Bd3 {[%clk 0:03:00]}  Bd6 {[%clk 0:02:56]} 7. Nbd2 {[%clk 0:02:59]}  O-O {[%clk 0:02:55]} 8. O-O {[%clk 0:02:59]}  b6 {[%clk 0:02:52]} 9. Ne5 {[%clk 0:02:57]}  Bb7 {[%clk 0:02:51]} 10. a3 {[%clk 0:02:56]}  Qc7 {[%clk 0:02:48]} 11. f4 {[%clk 0:02:56]}  Nd7 {[%clk 0:02:37]} 12. Rf3 {[%clk 0:02:49]}  f6 {[%clk 0:02:29]} 13. Bxh7+ {[%clk 0:02:44]}  Kxh7 {[%clk 0:02:27]} 14. Rh3+ {[%clk 0:02:42]}  Kg8 {[%clk 0:02:28]} 15. Qh5 {[%clk 0:02:33]}  fxe5 {[%clk 0:02:16]} 16. fxe5 {[%clk 0:02:32]}  Bxe5 {[%clk 0:02:16]} 17. dxe5 {[%clk 0:02:31]}  Ncxe5 {[%clk 0:02:16]} 18. Qh7+ {[%clk 0:02:23]}  Kf7 {[%clk 0:02:16]} 19. Rf1+ {[%clk 0:01:54]}  Nf6 {[%clk 0:02:03]} 20. Rg3 {[%clk 0:01:36]}  Rg8 {[%clk 0:02:00]} 21. Qh5+ {[%clk 0:01:13]}  Ke7 {[%clk 0:01:51]} 22. Qxe5 {[%clk 0:01:13]}  Qxe5 {[%clk 0:01:51]} 23. Bxe5 {[%clk 0:01:13]}  Raf8 {[%clk 0:01:50]} 24. Rg6 {[%clk 0:01:05]}  Rf7 {[%clk 0:01:50]} 25. Bxf6+ {[%clk 0:01:03]}  Rxf6 {[%clk 0:01:51]} 26. Rfxf6 {[%clk 0:01:03]} 1-0


[Site "https://www.chess.com"]

[Event "Early Titled Tuesday Blitz | February 8 2022"]
[White "Maksimenko, Viktor"]
[Black "Berdychevskaya, Natasha"]
[WhiteFideId "13710478"]
[BlackFideId "4159322"]
[WhiteElo "2269"]
[BlackElo "1780"]
[Result "1-0"]
[Round "01"]
[TimeControl "180+1"]
[Date "2022.02.08"]
[WhiteClock "0:01:44"]
[BlackClock "0:01:13"]

1. d4 {[%clk 0:03:00]}  d5 {[%clk 0:02:59]} 2. c4 {[%clk 0:03:00]}  dxc4 {[%clk 0:02:58]} 3. Nf3 {[%clk 0:03:00]}  a6 {[%clk 0:02:57]} 4. e3 {[%clk 0:03:00]}  Bg4 {[%clk 0:02:51]} 5. Bxc4 {[%clk 0:02:59]}  e6 {[%clk 0:02:51]} 6. h3 {[%clk 0:02:58]}  Bh5 {[%clk 0:02:50]} 7. O-O {[%clk 0:02:52]}  Nc6 {[%clk 0:02:46]} 8. Nbd2 {[%clk 0:02:47]}  Nf6 {[%clk 0:02:45]} 9. b3 {[%clk 0:02:39]}  Bd6 {[%clk 0:02:42]} 10. Bb2 {[%clk 0:02:38]}  O-O {[%clk 0:02:39]} 11. Be2 {[%clk 0:02:37]}  Qe8 {[%clk 0:02:38]} 12. Nc4 {[%clk 0:02:34]}  Rd8 {[%clk 0:02:34]} 13. Rc1 {[%clk 0:02:33]}  e5 {[%clk 0:02:30]} 14. Nfxe5 {[%clk 0:02:28]}  Bxe2 {[%clk 0:02:21]} 15. Qxe2 {[%clk 0:02:27]}  Bxe5 {[%clk 0:02:08]} 16. Nxe5 {[%clk 0:02:26]}  Nxe5 {[%clk 0:02:05]} 17. dxe5 {[%clk 0:02:27]}  Nd5 {[%clk 0:02:02]} 18. Rfd1 {[%clk 0:02:23]}  Qe6 {[%clk 0:01:54]} 19. Rc4 {[%clk 0:02:15]}  c6 {[%clk 0:01:52]} 20. Rcd4 {[%clk 0:02:08]}  Qe7 {[%clk 0:01:48]} 21. Qd2 {[%clk 0:01:57]}  Qg5 {[%clk 0:01:24]} 22. g3 {[%clk 0:01:48]}  Rde8 {[%clk 0:01:18]} 23. e4 {[%clk 0:01:44]}  Qxd2 {[%clk 0:01:13]} 24. R1xd2 {[%clk 0:01:45]}  Nc7 {[%clk 0:01:13]} 25. Ba3 {[%clk 0:01:44]} 1-0


[Site "https://www.chess.com"]

[Event "Early Titled Tuesday Blitz | February 8 2022"]
[White "Manukian, Artak"]
[Black "Svane, Frederik"]
[WhiteFideId "13301373"]
[BlackFideId "12923044"]
[WhiteElo "2432"]
[BlackElo "2459"]
[Result "0-1"]
[Round "01"]
[TimeControl "180+1"]
[Date "2022.02.08"]
[WhiteClock "0:01:05"]
[BlackClock "0:01:09"]

1. e4 {[%clk 0:03:00]}  c5 {[%clk 0:02:58]} 2. Nf3 {[%clk 0:03:00]}  Nc6 {[%clk 0:02:58]} 3. c3 {[%clk 0:03:00]}  e5 {[%clk 0:02:57]} 4. Bc4 {[%clk 0:03:00]}  Nf6 {[%clk 0:02:57]} 5. Ng5 {[%clk 0:02:56]}  d5 {[%clk 0:02:56]} 6. exd5 {[%clk 0:02:56]}  Nxd5 {[%clk 0:02:57]} 7. Qf3 {[%clk 0:02:41]}  Qxg5 {[%clk 0:02:53]} 8. Bxd5 {[%clk 0:02:41]}  Qg6 {[%clk 0:02:54]} 9. O-O {[%clk 0:02:36]}  Be7 {[%clk 0:02:45]} 10. Qg3 {[%clk 0:02:01]}  O-O {[%clk 0:02:22]} 11. Qxg6 {[%clk 0:02:01]}  hxg6 {[%clk 0:02:22]} 12. d3 {[%clk 0:01:59]}  Rd8 {[%clk 0:02:19]} 13. Bxc6 {[%clk 0:01:59]}  bxc6 {[%clk 0:02:19]} 14. Be3 {[%clk 0:01:55]}  Bf5 {[%clk 0:02:07]} 15. Nd2 {[%clk 0:01:52]}  Bxd3 {[%clk 0:02:05]} 16. Rfe1 {[%clk 0:01:48]}  Rab8 {[%clk 0:01:57]} 17. b3 {[%clk 0:01:48]}  a5 {[%clk 0:01:49]} 18. f3 {[%clk 0:01:41]}  Kf8 {[%clk 0:01:26]} 19. Ne4 {[%clk 0:01:38]}  Bxe4 {[%clk 0:01:25]} 20. fxe4 {[%clk 0:01:38]}  Rd3 {[%clk 0:01:25]} 21. Rac1 {[%clk 0:01:37]}  c4 {[%clk 0:01:23]} 22. bxc4 {[%clk 0:01:34]}  Rb2 {[%clk 0:01:22]} 23. Rcd1 {[%clk 0:01:27]}  Rxe3 {[%clk 0:01:17]} 24. Rxe3 {[%clk 0:01:27]}  Bc5 {[%clk 0:01:18]} 25. Re1 {[%clk 0:01:26]}  Rxa2 {[%clk 0:01:17]} 26. Kf1 {[%clk 0:01:26]}  Bxe3 {[%clk 0:01:16]} 27. Rxe3 {[%clk 0:01:27]}  a4 {[%clk 0:01:15]} 28. Rd3 {[%clk 0:01:26]}  Ke7 {[%clk 0:01:14]} 29. c5 {[%clk 0:01:26]}  a3 {[%clk 0:01:14]} 30. c4 {[%clk 0:01:22]}  f5 {[%clk 0:01:12]} 31. exf5 {[%clk 0:01:21]}  gxf5 {[%clk 0:01:13]} 32. h4 {[%clk 0:01:15]}  e4 {[%clk 0:01:12]} 33. Re3 {[%clk 0:01:08]}  Kf6 {[%clk 0:01:12]} 34. g3 {[%clk 0:01:05]}  Ke5 {[%clk 0:01:11]} 35. Rb3 {[%clk 0:01:05]}  Kd4 {[%clk 0:01:09]} 36. Rb7 {[%clk 0:01:05]}  Rb2 {[%clk 0:01:09]} 0-1


[Site "https://www.chess.com"]

[Event "Early Titled Tuesday Blitz | February 8 2022"]
[White "Manukyan, Sargis A."]
[Black "Navara, David"]
[WhiteFideId "13303970"]
[BlackFideId "309095"]
[WhiteElo "2187"]
[BlackElo "2686"]
[Result "0-1"]
[Round "01"]
[TimeControl "180+1"]
[Date "2022.02.08"]
[WhiteClock "0:00:06"]
[BlackClock "0:00:03"]

1. d4 {[%clk 0:02:55]}  Nf6 {[%clk 0:03:00]} 2. e3 {[%clk 0:02:53]}  d5 {[%clk 0:02:59]} 3. Nf3 {[%clk 0:02:53]}  c5 {[%clk 0:02:59]} 4. Be2 {[%clk 0:02:53]}  Nc6 {[%clk 0:02:57]} 5. O-O {[%clk 0:02:47]}  cxd4 {[%clk 0:02:50]} 6. exd4 {[%clk 0:02:38]}  Bg4 {[%clk 0:02:50]} 7. b3 {[%clk 0:02:38]}  e6 {[%clk 0:02:49]} 8. Bb2 {[%clk 0:02:38]}  Bd6 {[%clk 0:02:34]} 9. Nbd2 {[%clk 0:02:38]}  O-O {[%clk 0:02:33]} 10. Ne5 {[%clk 0:02:35]}  Bxe2 {[%clk 0:02:29]} 11. Qxe2 {[%clk 0:02:35]}  Rc8 {[%clk 0:02:30]} 12. Nxc6 {[%clk 0:02:17]}  Rxc6 {[%clk 0:02:30]} 13. c4 {[%clk 0:02:13]}  Bf4 {[%clk 0:02:09]} 14. Nf3 {[%clk 0:02:05]}  dxc4 {[%clk 0:01:47]} 15. bxc4 {[%clk 0:02:05]}  Qc7 {[%clk 0:01:48]} 16. d5 {[%clk 0:01:37]}  exd5 {[%clk 0:01:49]} 17. Bxf6 {[%clk 0:01:37]}  Rxf6 {[%clk 0:01:49]} 18. cxd5 {[%clk 0:01:38]}  Qd7 {[%clk 0:01:36]} 19. Rfd1 {[%clk 0:01:34]}  Re8 {[%clk 0:01:36]} 20. Qc4 {[%clk 0:01:13]}  Bd6 {[%clk 0:01:29]} 21. Rd3 {[%clk 0:01:07]}  Qf5 {[%clk 0:01:16]} 22. Rad1 {[%clk 0:01:03]}  h6 {[%clk 0:01:13]} 23. h3 {[%clk 0:01:03]}  b6 {[%clk 0:01:06]} 24. Qa4 {[%clk 0:00:49]}  Re2 {[%clk 0:00:55]} 25. R3d2 {[%clk 0:00:44]}  Rxd2 {[%clk 0:00:50]} 26. Rxd2 {[%clk 0:00:45]}  Rg6 {[%clk 0:00:41]} 27. Kh1 {[%clk 0:00:37]}  Kh7 {[%clk 0:00:30]} 28. Qc2 {[%clk 0:00:20]}  Qxc2 {[%clk 0:00:25]} 29. Rxc2 {[%clk 0:00:21]}  Bc5 {[%clk 0:00:25]} 30. Kg1 {[%clk 0:00:16]}  Rd6 {[%clk 0:00:25]} 31. Rd2 {[%clk 0:00:17]}  f6 {[%clk 0:00:23]} 32. Kf1 {[%clk 0:00:16]}  b5 {[%clk 0:00:21]} 33. Rd3 {[%clk 0:00:16]}  a5 {[%clk 0:00:17]} 34. Ke2 {[%clk 0:00:16]}  b4 {[%clk 0:00:17]} 35. Nd2 {[%clk 0:00:15]}  Ra6 {[%clk 0:00:12]} 36. Ne4 {[%clk 0:00:14]}  Bd6 {[%clk 0:00:12]} 37. g4 {[%clk 0:00:12]}  Kg6 {[%clk 0:00:12]} 38. Ke3 {[%clk 0:00:11]}  f5 {[%clk 0:00:12]} 39. Nd2 {[%clk 0:00:09]}  a4 {[%clk 0:00:06]} 40. f4 {[%clk 0:00:09]}  Bc5+ {[%clk 0:00:04]} 41. Ke2 {[%clk 0:00:09]}  b3 {[%clk 0:00:05]} 42. axb3 {[%clk 0:00:10]}  a3 {[%clk 0:00:05]} 43. b4 {[%clk 0:00:09]}  a2 {[%clk 0:00:05]} 44. Nb3 {[%clk 0:00:09]}  Bxb4 {[%clk 0:00:05]} 45. d6 {[%clk 0:00:08]}  Bxd6 {[%clk 0:00:05]} 46. Rd1 {[%clk 0:00:07]}  Bxf4 {[%clk 0:00:04]} 47. Rf1 {[%clk 0:00:05]}  Be5 {[%clk 0:00:03]} 48. gxf5+ {[%clk 0:00:05]}  Kf6 {[%clk 0:00:03]} 49. Nc5 {[%clk 0:00:05]}  a1=Q {[%clk 0:00:03]} 50. Nd7+ {[%clk 0:00:04]}  Ke7 {[%clk 0:00:03]} 51. f6+ {[%clk 0:00:03]}  Bxf6 {[%clk 0:00:03]} 52. Rxa1 {[%clk 0:00:04]}  Bxa1 {[%clk 0:00:03]} 53. Nc5 {[%clk 0:00:05]}  Re6+ {[%clk 0:00:03]} 54. Ne4 {[%clk 0:00:06]}  Rxe4+ {[%clk 0:00:03]} 0-1


[Site "https://www.chess.com"]

[Event "Early Titled Tuesday Blitz | February 8 2022"]
[White "Martinez Lopez, David"]
[Black "Mirzoev, Azer"]
[WhiteFideId "22235779"]
[BlackFideId "13400304"]
[WhiteElo "2367"]
[BlackElo "2525"]
[Result "1-0"]
[Round "01"]
[TimeControl "180+1"]
[Date "2022.02.08"]
[WhiteClock "0:00:07"]
[BlackClock "0:00:08"]

1. e4 {[%clk 0:02:59]}  Nf6 {[%clk 0:02:58]} 2. e5 {[%clk 0:02:58]}  Nd5 {[%clk 0:02:57]} 3. d4 {[%clk 0:02:59]}  d6 {[%clk 0:02:57]} 4. Nf3 {[%clk 0:02:59]}  dxe5 {[%clk 0:02:57]} 5. Nxe5 {[%clk 0:02:58]}  c6 {[%clk 0:02:50]} 6. Be2 {[%clk 0:02:57]}  Nd7 {[%clk 0:02:48]} 7. Nf3 {[%clk 0:02:56]}  N7f6 {[%clk 0:02:48]} 8. O-O {[%clk 0:02:57]}  Bg4 {[%clk 0:02:46]} 9. c4 {[%clk 0:02:53]}  Nb6 {[%clk 0:02:45]} 10. b3 {[%clk 0:02:49]}  e6 {[%clk 0:02:39]} 11. Nbd2 {[%clk 0:02:47]}  Be7 {[%clk 0:02:39]} 12. Bb2 {[%clk 0:02:47]}  O-O {[%clk 0:02:38]} 13. Re1 {[%clk 0:02:47]}  Nbd7 {[%clk 0:02:37]} 14. h3 {[%clk 0:02:42]}  Bh5 {[%clk 0:02:36]} 15. Nf1 {[%clk 0:02:40]}  Qc7 {[%clk 0:02:27]} 16. Ng3 {[%clk 0:02:40]}  Bg6 {[%clk 0:02:27]} 17. Bd3 {[%clk 0:02:36]}  Rfe8 {[%clk 0:02:22]} 18. Bxg6 {[%clk 0:02:18]}  hxg6 {[%clk 0:02:22]} 19. Qd2 {[%clk 0:01:57]}  a5 {[%clk 0:02:20]} 20. a3 {[%clk 0:01:56]}  Bf8 {[%clk 0:02:13]} 21. Ne5 {[%clk 0:01:49]}  Nxe5 {[%clk 0:02:12]} 22. dxe5 {[%clk 0:01:50]}  Nd7 {[%clk 0:02:12]} 23. Qf4 {[%clk 0:01:43]}  Nc5 {[%clk 0:02:09]} 24. Ne4 {[%clk 0:01:32]}  Nd3 {[%clk 0:01:59]} 25. Qh4 {[%clk 0:01:31]}  Be7 {[%clk 0:01:58]} 26. Nf6+ {[%clk 0:01:14]}  gxf6 {[%clk 0:01:48]} 27. exf6 {[%clk 0:01:15]}  Nxb2 {[%clk 0:01:42]} 28. fxe7 {[%clk 0:01:03]}  Qxe7 {[%clk 0:01:42]} 29. Qd4 {[%clk 0:01:03]}  Nxc4 {[%clk 0:01:32]} 30. bxc4 {[%clk 0:01:02]}  Red8 {[%clk 0:01:32]} 31. Qc3 {[%clk 0:01:00]}  Rd7 {[%clk 0:01:29]} 32. Re3 {[%clk 0:00:56]}  Qc5 {[%clk 0:01:24]} 33. Re4 {[%clk 0:00:41]}  Rad8 {[%clk 0:01:19]} 34. Rae1 {[%clk 0:00:41]}  Rd3 {[%clk 0:01:16]} 35. Qf6 {[%clk 0:00:39]}  Qf5 {[%clk 0:01:06]} 36. Qh4 {[%clk 0:00:17]}  Rd1 {[%clk 0:00:55]} 37. Rxd1 {[%clk 0:00:13]}  Rxd1+ {[%clk 0:00:54]} 38. Kh2 {[%clk 0:00:14]}  Kg7 {[%clk 0:00:43]} 39. Rf4 {[%clk 0:00:12]}  Qe5 {[%clk 0:00:31]} 40. Qg3 {[%clk 0:00:12]}  Qa1 {[%clk 0:00:09]} 41. Qf3 {[%clk 0:00:10]}  Rh1+ {[%clk 0:00:09]} 42. Kg3 {[%clk 0:00:10]}  Qe5 {[%clk 0:00:09]} 43. Kg4 {[%clk 0:00:06]}  Qh5+ {[%clk 0:00:08]} 44. Kg3 {[%clk 0:00:07]} 1-0


[Site "https://www.chess.com"]

[Event "Early Titled Tuesday Blitz | February 8 2022"]
[White "Martirosyan, Haik M."]
[Black "Brunner, Nicolas"]
[WhiteFideId "13306553"]
[BlackFideId "620246"]
[WhiteElo "2735"]
[BlackElo "2372"]
[Result "1-0"]
[Round "01"]
[TimeControl "180+1"]
[Date "2022.02.08"]
[WhiteClock "0:01:54"]
[BlackClock "0:01:02"]

1. c4 {[%clk 0:03:00]}  c5 {[%clk 0:02:59]} 2. Nc3 {[%clk 0:03:00]}  Nc6 {[%clk 0:02:57]} 3. g3 {[%clk 0:03:00]}  g6 {[%clk 0:02:57]} 4. Bg2 {[%clk 0:03:01]}  Bg7 {[%clk 0:02:57]} 5. d3 {[%clk 0:03:02]}  d6 {[%clk 0:02:56]} 6. Nf3 {[%clk 0:03:01]}  e5 {[%clk 0:02:55]} 7. O-O {[%clk 0:03:00]}  Nge7 {[%clk 0:02:54]} 8. a3 {[%clk 0:03:01]}  O-O {[%clk 0:02:53]} 9. Rb1 {[%clk 0:03:01]}  a5 {[%clk 0:02:53]} 10. Ne1 {[%clk 0:02:58]}  Be6 {[%clk 0:02:52]} 11. Nd5 {[%clk 0:02:57]}  Rb8 {[%clk 0:02:50]} 12. Bd2 {[%clk 0:02:49]}  b5 {[%clk 0:02:49]} 13. Nxe7+ {[%clk 0:02:48]}  Nxe7 {[%clk 0:02:48]} 14. cxb5 {[%clk 0:02:48]}  Rxb5 {[%clk 0:02:48]} 15. Bc3 {[%clk 0:02:47]}  Bb3 {[%clk 0:02:45]} 16. Qc1 {[%clk 0:02:46]}  a4 {[%clk 0:02:44]} 17. Nf3 {[%clk 0:02:45]}  Nf5 {[%clk 0:02:39]} 18. e3 {[%clk 0:02:44]}  Qb6 {[%clk 0:02:30]} 19. Nd2 {[%clk 0:02:43]}  Rb8 {[%clk 0:02:21]} 20. Nxb3 {[%clk 0:02:40]}  Rxb3 {[%clk 0:02:21]} 21. Bd5 {[%clk 0:02:38]}  Rb5 {[%clk 0:02:19]} 22. Bc4 {[%clk 0:02:37]}  h5 {[%clk 0:02:06]} 23. Qc2 {[%clk 0:02:35]}  Rb3 {[%clk 0:02:02]} 24. Bxb3 {[%clk 0:02:30]}  axb3 {[%clk 0:02:02]} 25. Qe2 {[%clk 0:02:30]}  Qc6 {[%clk 0:02:01]} 26. Rbc1 {[%clk 0:02:27]}  h4 {[%clk 0:02:00]} 27. e4 {[%clk 0:02:27]}  Nd4 {[%clk 0:01:45]} 28. Bxd4 {[%clk 0:02:26]}  exd4 {[%clk 0:01:46]} 29. gxh4 {[%clk 0:02:24]}  Qd7 {[%clk 0:01:44]} 30. h5 {[%clk 0:02:21]}  g5 {[%clk 0:01:36]} 31. f4 {[%clk 0:02:17]}  gxf4 {[%clk 0:01:35]} 32. Rxf4 {[%clk 0:02:18]}  Bh6 {[%clk 0:01:35]} 33. Rg4+ {[%clk 0:02:17]}  Kh8 {[%clk 0:01:35]} 34. Rf1 {[%clk 0:02:16]}  Be3+ {[%clk 0:01:32]} 35. Kh1 {[%clk 0:02:16]}  Qe6 {[%clk 0:01:31]} 36. Qf3 {[%clk 0:02:09]}  Rb7 {[%clk 0:01:27]} 37. Qg3 {[%clk 0:02:04]}  Qh6 {[%clk 0:01:24]} 38. e5 {[%clk 0:01:56]}  d5 {[%clk 0:01:03]} 39. Rf6 {[%clk 0:01:55]}  Qxh5 {[%clk 0:01:02]} 40. Rg8+ {[%clk 0:01:54]} 1-0


[Site "https://www.chess.com"]